{"text_format":"1","workbook":"xlsx","n_sheets":1,"sheets":["Лист4"],"not_rendered":{"charts":0,"images":0,"macros":1,"external_links":0,"defined_names":1,"comments":0,"pivot_tables":0},"unopened":[],"bounds":{"document_bytes":16777216,"sheet_cells":100000,"rows_first":2000,"rows_last":500,"rows_between":2000,"halvings":0,"cell_chars":16384,"cell_head_chars":4096},"cells_cut":0,"cells_raw":0,"read":"whole","date_system":"1900"}

{"sheet":"Лист4","index":0,"n_rows":26,"n_cols":13,"rows_kept":26,"cut":false,"hidden":false,"merged":[[14,1,18,5],[1,2,1,3],[3,2,4,2],[3,3,4,3],[1,1,4,1],[1,4,4,4]]}
[]
[null,"Назва обьєкту","Покази приладів обліку",null,"Різниця показників"]
[null,null,"2013-07-02",{"$f":"C3-1","v":"2013-07-01"},null,null,null,null,"2013-07-04",{"$f":"I3-1","v":"2013-07-03"},{"$f":"J3-1","v":"2013-07-02"},"2013-07-01","2013-06-30"]
[null,null,"поточні","попередні"]
[null,null,null,null,null,null,null,null,{"$f":"$E$6","v":1},{"$f":"$E$6","v":1},1,1,1]
[null,"Обьект 1",2,1,{"$f":"C6-D6","v":1},null,null,"Обьект 1",{"$f":"IF(EXACT($C$3,(I3:M3)),$E$6,\"\")","v":""},{"$f":"IF(EXACT($C$3,($J$3:$N$3)),$E$6,\"\")","v":""},{"$f":"IF(EXACT($C$3,($J$3:$N$3)),$E$6,\"\")","v":1},{"$f":"IF(EXACT($C$3,($J$3:$N$3)),$E$6,\"\")","v":""},""]
[null,"Обьект 2",5,3,{"$f":"C7-D7","v":2},null,null,"Обьект 2",{"$f":"IF(EXACT($C$3,($I$3:$N$3)),$E$7,\"\")","v":""},{"$f":"IF(EXACT($C$3,($I$3:$N$3)),$E$7,\"\")","v":""},2,"",""]
[null,"Обьект 3",9,4,5,null,null,"Обьект 3",null,{"$f":"IF(EXACT($C$3,($I$3:$N$3)),$E$8,\"\")","v":""},{"$f":"IF(EXACT($C$3,($I$3:$N$3)),$E$8,\"\")","v":5},"",""]
[null,"Обьект 4",5,4,1,null,null,"Обьект 4"]
[null,"Обьект 5",6,5,1,null,null,"Обьект 5"]
[]
[]
[]
[]
[null,"Не получается?? Если я в \"С3\" ставлю дату 02.07.2013 то данные заносятся в \"К6\" . Если я меняю дату на 03.07.2013 то данные заносятся в \"J6\", a в \"К6\" исчезают, а нужно чтобы в \"К6\" оставались"]
[]
[]
[]
[]
[]
[]
[null,"Дата меняется только в \"С3\""]
[null,"Диапазон столбцов І:М задаю заранее и оставляю как архив, потому как на основании єтих цифирок нужно слепить 15 отчетов"]
[null,"І5:М5 - скопированное Е6 для того чтобы создать ссылку"]
[null,"Нужно чтобы при изменении даты в С3 данные из столбца Е6 разносились по столбцам I,J,K и т.д и там оставались"]
[null,"И вот, же, как получается, все вродь работает а сохранить не могу, тяжко в 57 лет осваивать науку, а хочется"]